bitfinex-derivatives/quotes_ETHF0:USTF0_20240818
["timestamp","ask_amount","ask_price","bid_price","bid_amount"]
[1724001856395,1.88095,2657.6,2657.5,0.3691]
[1724001857099,1.88530985,2657.6,2657.5,0.37193948]
[1724001860201,1.88109,2657.4,2657.3,0.00564111]
[1724001860406,11.12607,2657.4,2657.3,1.11e-06]
[1724001860603,13.00818,2657.4,2657.3,1.11e-06]
[1724001860910,20.26067,2657.4,2657.3,1.11e-06]
[1724001861103,13.37958,2657.4,2657.3,1.11e-06]
[1724001861406,20.26067,2657.4,2657.3,9.79e-06]
[1724001861794,18.37958,2657.4,2657.3,9.79e-06]
[1724001861996,20.26067,2657.4,2657.3,9.79e-06]
[1724001862194,1.88151,2656.8,2656.7,0.3397]
[1724001862495,4.15651,2656.8,2656.7,0.3397]
[1724001862896,1.88172,2656.5,2656.4,0.3644]
[1724001863208,1.88172,2656.5,2655.2,1.88262]
[1724001863209,1.88214,2656.0,2655.3,3.2078]
[1724001863400,2.275,2655.4,2655.3,1.05790258]
[1724001863604,5.4873094,2655.4,2654.6,1.88301]
[1724001863908,5.4873094,2655.4,2653.9,1.88356]
[1724001863909,1.88307,2654.6,2654.0,0.342]
[1724001864115,2.275,2654.7,2654.1,0.3512]
[1724001864412,2.275,2654.4,2654.1,0.3512]
[1724001864708,2.275,2654.4,2654.1,0.35411208]
[1724001865007,0.00564111,2654.7,2654.2,6.975]
[1724001865219,2.275,2654.6,2654.1,0.35411208]
[1724001865403,0.00564111,2654.7,2654.1,4.12131208]
[1724001865595,0.00564111,2654.7,2654.2,6.975]
[1724001865799,2.2795094,2655.4,2654.6,1.88307]
[1724001866006,2.2795094,2655.4,2654.8,3.2078]
[1724001866413,0.0045094,2655.4,2654.8,3.2078]
[1724001866621,0.0045094,2655.4,2655.1,3.2078]
[1724001866798,0.0045094,2655.4,2654.4,0.00564111]
[1724001866799,0.0045094,2655.4,2654.7,3.2078]
[1724001867032,0.0045094,2655.4,2654.8,1.88293]
[1724001867210,0.0045094,2655.4,2655.0,3.2078]
[1724001867507,0.0045094,2655.4,2655.1,0.3735]
[1724001868106,0.0045094,2655.4,2655.2,3.7664]
[1724001868509,0.0045094,2655.4,2655.3,6.9742]
[1724001868720,0.00564111,2655.5,2655.3,3.2078]
[1724001869007,3.038,2656.1,2655.4,5.6481]
[1724001869204,3.038,2656.1,2655.6,3.2078]
[1724001869401,3.038,2656.1,2655.3,1.88253]
[1724001869402,3.2078,2656.7,2655.9,3.2078]
[1724001869607,1.88167,2656.6,2655.9,3.2078]
[1724001870113,0.00564111,2656.5,2656.0,3.21344111]
[1724001870412,0.00564111,2656.5,2656.0,3.21782828]
[1724001870608,0.00564111,2656.5,2656.1,2.2266]
[1724001870816,0.00564111,2656.5,2656.2,1.88189]
[1724001871214,0.00564111,2656.5,2656.3,3.2078]
[1724001871703,0.00564111,2656.5,2656.3,6.9726]
[1724001872307,0.00564111,2656.5,2656.4,0.3683]
[1724001872710,3.77044111,2656.5,2656.4,0.3683]
[1724001872910,5.65216111,2656.5,2656.4,0.3683]
[1724001873112,1.88736111,2656.5,2656.4,0.3683]
[1724001873409,3.77044111,2656.5,2656.1,0.3446]
[1724001873610,3.77044111,2656.5,2656.0,0.01002828]
[1724001873611,3.2078,2656.4,2656.0,0.01002828]
[1724001873911,1.88201,2656.1,2656.0,0.01002828]
[1724001874116,5.08981,2656.1,2656.0,0.01002828]
[1724001876610,3.2078,2656.1,2656.0,0.01002828]
[1724001876911,1.88197,2656.2,2656.0,0.01002828]
[1724001877109,1.88201,2656.1,2656.0,0.01002828]
[1724001877507,5.08981,2656.1,2656.0,0.01002828]
[1724001877916,5.08981,2656.1,2656.0,8.28e-06]
[1724001877917,18.77462,2656.1,2656.0,8.28e-06]
[1724001878924,20.65663,2656.1,2656.0,8.28e-06]
[1724001879113,3.7648,2656.0,2654.5,3.5729]
[1724001879315,3.2078,2655.0,2654.5,3.9458]
[1724001879718,4.9206,2655.3,2654.5,0.738]
[1724001879919,1.88307,2654.6,2654.5,0.738]
[1724001880120,1.88750202,2654.6,2654.5,0.74110486]
[1724001880425,1.88750202,2654.6,2654.5,0.00310486]
[1724001880426,8.86250202,2654.6,2654.5,0.00310486]
[1724001882220,15.74557202,2654.6,2654.5,4.86e-06]
[1724001882432,8.86250202,2654.6,2654.5,4.86e-06]
[1724001882627,11.90050202,2654.6,2654.5,4.86e-06]
[1724001883147,3.21223202,2654.6,2654.5,4.86e-06]
[1724001883324,0.00443202,2654.6,2654.5,3.76720486]
[1724001883911,0.00443202,2654.6,2654.5,4.86e-06]
[1724001883912,11.90050202,2654.6,2654.5,4.86e-06]
[1724001885115,0.00443202,2654.6,2654.5,3.76720486]
[1724001886426,1.88750202,2654.6,2654.5,4.86e-06]
[1724001886816,0.00443202,2654.6,2654.5,4.86e-06]
[1724001887314,0.00443202,2654.6,2654.5,3.76720486]
[1724001887539,0.00443202,2654.6,2654.5,4.86e-06]
[1724001888229,1.88750202,2654.6,2654.5,4.86e-06]
[1724001888418,0.00443202,2654.6,2654.5,4.86e-06]
[1724001888617,1.88750202,2654.6,2654.5,4.86e-06]
[1724001888818,0.00443202,2654.6,2654.5,5.65034486]
[1724001889014,0.00443202,2654.6,2654.5,3.76720486]
[1724001889218,1.88750202,2654.6,2654.5,4.86e-06]
[1724001889424,0.00443202,2654.6,2654.5,4.86e-06]
[1724001889624,0.00443202,2654.6,2654.5,3.76720486]
[1724001890132,1.88750202,2654.6,2654.5,3.76720486]
[1724001890317,0.00443202,2654.6,2654.5,3.76720486]
[1724001891013,0.00443202,2654.6,2654.5,10.65034486]
[1724001891216,0.00564111,2654.8,2654.7,1.883]
[1724001891613,0.00564111,2654.8,2654.7,10.6502]
[1724001892026,0.00564111,2654.8,2654.7,5.6502]
[1724001892234,0.00970413,2654.8,2654.7,10.6502]
[1724001892527,0.00970413,2654.8,2654.7,13.858]
[1724001893428,1.88261,2655.3,2655.0,1.88276]
[1724001893617,1.88255,2655.4,2654.7,6.975]
[1724001893816,5.09028,2655.5,2654.7,3.2078]
[1724001894018,3.2078,2655.5,2654.8,1.88293]
[1724001894327,1.88271,2655.2,2654.9,1.88847111]
[1724001894528,1.88268,2655.2,2654.9,1.88847111]
[1724001894830,2.22857,2655.9,2654.9,1.88847111]
[1724001894831,1.88227,2655.8,2655.1,3.2078]
[1724001895021,3.2078,2656.1,2655.4,3.2078]
[1724001895342,1.88222,2655.8,2655.5,1.88242]
[1724001895525,1.88222,2655.8,2655.4,5.09026]
[1724001895826,1.8823,2655.7,2655.1,3.2078]
[1724001896125,0.00300912,2655.8,2655.1,3.2078]
[1724001896429,0.00300912,2655.8,2655.4,3.2078]
[1724001896723,0.00300912,2655.8,2654.9,0.00564111]
[1724001896724,3.21080912,2655.8,2654.9,0.00564111]
[1724001896919,1.88279,2655.0,2654.9,0.00564111]
[1724001897420,1.88279,2655.0,2654.9,3.77204111]
[1724001898720,10.73978,2655.0,2654.9,0.00166928]
[1724001899235,17.62257,2655.0,2654.9,9.28e-06]
[1724001899622,15.73978,2655.0,2654.9,9.28e-06]
[1724001900235,10.73978,2655.0,2654.9,9.28e-06]
[1724001900419,15.73978,2655.0,2654.9,9.28e-06]
[1724001900825,17.62257,2655.0,2654.9,9.28e-06]
[1724001901532,10.73978,2655.0,2654.9,9.28e-06]
[1724001901732,15.73978,2655.0,2654.9,9.28e-06]
[1724001901925,5.09059,2655.0,2654.9,9.28e-06]
[1724001902227,8.85699,2655.0,2654.9,9.28e-06]
[1724001902425,10.73978,2655.0,2654.9,9.28e-06]
[1724001902628,8.85699,2655.0,2654.9,9.28e-06]
[1724001902819,5.09059,2655.0,2654.9,9.28e-06]
[1724001903247,6.97338,2655.0,2654.9,9.28e-06]
[1724001903632,5.09059,2655.0,2654.9,9.28e-06]
[1724001904420,6.97338,2655.0,2654.9,9.28e-06]
[1724001904832,10.73978,2655.0,2654.9,9.28e-06]
[1724001905134,5.64921,2654.6,2654.5,4.86e-06]
[1724001905365,5.64921,2654.6,2653.2,3.2078]
[1724001905366,6.2458,2654.6,2653.2,3.2078]
[1724001905532,3.038,2653.8,2653.2,1.88405]
[1724001905730,3.2078,2653.7,2653.2,1.88406]
[1724001905920,3.038,2653.8,2653.3,1.88399]
[1724001906229,0.00950367,2653.8,2653.3,0.01026962]
[1724001906425,1.89314367,2653.8,2653.4,1.8839]
[1724001906627,0.00950367,2653.8,2653.3,3.77906962]
[1724001906829,0.00950367,2653.8,2653.7,1.88371]
[1724001907035,0.00950367,2653.8,2653.7,5.65171]
[1724001907231,0.00950367,2653.8,2653.7,10.65171]
[1724001907437,0.00950367,2653.8,2653.7,3.768]
[1724001907733,0.00950367,2653.8,2653.7,8.768]
[1724001907923,1.88371,2653.7,2653.3,0.01026962]
[1724001908237,1.88392,2653.4,2653.3,0.01026962]
[1724001909931,14.42056,2653.4,2653.3,0.01026962]
[1724001910238,14.42056,2653.4,2651.8,6.851]
[1724001910239,3.2078,2653.3,2651.8,1.88499]
[1724001910535,10.276,2653.4,2651.3,0.3564]
[1724001910536,3.2078,2651.9,2651.3,0.3564]
[1724001910956,1.88509,2651.8,2651.3,0.3564]
[1724001911128,0.00315882,2651.8,2651.3,0.36083211]
[1724001911433,0.00881067,2651.8,2651.3,0.36083211]
[1724001912037,1.88513,2651.7,2651.3,0.36083211]
[1724001912336,3.038,2651.5,2650.1,3.2078]
[1724001912538,3.2078,2650.9,2650.6,1.88589]
[1724001912728,3.2078,2651.7,2650.8,3.2078]
[1724001912933,1.89393067,2651.8,2650.0,3.038]
[1724001912934,6.076,2650.9,2650.0,1.32287]
[1724001913129,6.076,2650.9,2648.5,0.19245929]
[1724001913130,6.2458,2650.1,2648.5,0.19245929]
[1724001913339,3.2078,2649.4,2648.6,0.7248]
[1724001913633,3.2121913,2649.4,2649.3,1.88684]
[1724001913834,0.3381,2650.8,2648.6,11.99959491]
[1724001913835,3.2078,2650.1,2649.2,3.2078]
[1724001914029,3.2078,2650.5,2649.8,3.2078]
[1724001914231,3.2078,2650.9,2650.4,1.88604]
[1724001914436,6.2458,2650.6,2649.9,0.7248]
[1724001914634,3.2078,2650.3,2649.9,0.7248]
[1724001914853,3.21120298,2650.3,2649.9,4.50146966]
[1724001915037,3.21120298,2650.3,2649.9,0.72786966]
[1724001915038,6.24920298,2650.3,2649.9,0.72786966]
[1724001915259,6.2458,2650.0,2649.9,0.00306966]
[1724001916036,3.2078,2650.0,2649.9,10.66307966]
[1724001916226,3.2078,2650.0,2649.9,8.77666966]
[1724001916431,3.2078,2650.0,2649.9,0.00306966]
[1724001916627,3.2078,2650.0,2649.9,3.77666966]
[1724001916837,3.2078,2650.0,2649.9,5.66307966]
[1724001917238,0.00340298,2650.3,2650.2,1.8862]
[1724001917539,0.00340298,2650.3,2649.9,0.00306966]
[1724001917540,3.21120298,2650.3,2649.9,0.00306966]
[1724001917743,3.21120298,2650.3,2650.1,1.88627]
[1724001917943,3.21120298,2650.3,2650.0,6.00372]
[1724001918140,3.21120298,2650.3,2650.0,6.36612]
[1724001918445,3.21120298,2650.3,2650.0,4.4798]
[1724001918737,3.21120298,2650.3,2650.2,1.8862]
[1724001918738,0.00340298,2650.3,2650.2,1.8862]
[1724001918942,0.00340298,2650.3,2650.1,3.7736]
[1724001919144,0.00340298,2650.3,2650.2,5.6598]
[1724001919550,0.00340298,2650.3,2650.2,10.6598]
[1724001919743,11.81500298,2650.3,2649.9,0.00306966]
[1724001920050,6.2458,2650.0,2649.0,0.3624]
[1724001920244,5.36680298,2650.3,2647.9,3.2078]
[1724001920245,3.2078,2649.1,2647.9,3.2078]
[1724001920540,3.2078,2648.8,2647.9,3.2078]
[1724001920740,3.2078,2648.8,2648.2,3.2078]
[1724001920930,3.2078,2648.8,2648.0,3.776]
[1724001920931,3.2078,2649.2,2648.5,3.2078]
[1724001921134,3.038,2649.5,2648.0,0.00489856]
[1724001921135,3.21346262,2648.6,2648.0,0.00489856]
[1724001921353,3.038,2648.2,2648.0,0.00489856]
[1724001921542,1.88769,2648.1,2648.0,0.00489856]
[1724001921743,5.66369,2648.1,2648.0,0.00489856]
[1724001922246,3.776,2648.1,2647.7,0.00151309]
[1724001922507,6.3818,2647.8,2647.7,0.00151309]
[1724001922854,10.1586,2647.8,2647.7,0.00151309]
[1724001923349,0.00381972,2648.2,2647.7,0.00439759]
[1724001923350,3.2078,2648.1,2647.7,0.00439759]
[1724001923551,3.2078,2647.8,2647.7,0.00439759]
[1724001923737,6.9846,2647.8,2647.7,0.00439759]
[1724001924139,6.9846,2647.8,2645.6,3.2078]
[1724001924140,1.8885,2647.0,2645.6,3.2078]
[1724001924346,8.2078,2647.8,2645.5,1.88955]
[1724001924347,3.2078,2646.1,2645.5,1.88955]
[1724001924543,3.174,2646.6,2645.4,0.3538]
[1724001924544,3.2078,2646.2,2645.4,0.3538]
[1724001924940,3.2078,2646.6,2646.2,1.88899]
[1724001925142,3.2078,2646.6,2646.2,0.00356834]
[1724001925143,3.21236141,2646.6,2646.2,0.00356834]
[1724001925370,3.2078,2646.3,2646.2,0.00356834]
[1724001925951,6.987,2646.3,2646.2,0.00356834]
[1724001926177,3.17856141,2646.6,2646.2,0.00356834]
[1724001926178,0.00456141,2646.6,2646.2,3.78276834]
[1724001926452,0.00456141,2646.6,2646.2,0.00356834]
[1724001926676,3.2078,2646.4,2646.2,0.00356834]
[1724001926847,0.00456141,2646.6,2646.5,1.88884]
[1724001927243,0.00456141,2646.6,2646.5,5.66724]
[1724001927446,0.00566262,2646.7,2646.6,1.88876]
[1724001927655,0.00566262,2646.7,2646.6,5.66716]
[1724001927841,0.00566262,2646.7,2646.6,1.88876]
[1724001928247,0.00566262,2646.7,2646.6,5.66716]
[1724001928448,0.0105431,2646.7,2646.6,1.88876]
[1724001928650,0.0105431,2646.7,2646.6,5.66716]
[1724001928947,3.2078,2647.1,2647.0,1.88848]
[1724001929150,3.2078,2647.1,2646.9,1.88853]
[1724001929450,3.2078,2647.1,2646.4,3.2078]
[1724001929653,3.2078,2647.5,2647.2,1.88833]
[1724001929877,3.2078,2647.4,2646.7,3.2078]
[1724001930342,3.2078,2647.4,2647.1,0.00566262]
[1724001930543,3.2078,2647.4,2647.3,1.88826]
[1724001930746,0.00412565,2647.5,2647.4,1.88819]
[1724001930946,1.88728,2648.7,2647.4,5.0]
[1724001931248,3.2078,2648.8,2647.7,3.2078]
[1724001931453,3.2078,2648.8,2647.2,8.14934343]
[1724001931454,3.2078,2649.1,2648.1,3.2078]
[1724001931656,3.2078,2648.8,2647.7,3.2078]
[1724001931851,3.21216312,2648.8,2648.1,3.2078]
[1724001932154,3.21216312,2648.8,2648.2,1.88758]
[1724001932340,0.00566262,2648.5,2647.7,3.21119453]
[1724001932540,3.21346262,2648.5,2648.2,0.00566262]
[1724001932745,1.88755,2648.3,2648.2,2.62e-06]
[1724001933057,3.7751,2648.3,2648.2,2.62e-06]
[1724001933356,12.5511,2648.3,2648.2,2.62e-06]
[1724001934657,1.88791,2647.8,2647.7,7.15e-06]
[1724001934855,5.09571,2647.8,2647.7,7.15e-06]
[1724001935056,13.87251,2647.8,2647.7,7.15e-06]
[1724001935352,15.76042,2647.8,2647.7,7.15e-06]
[1724001936244,11.9846,2647.8,2647.5,9.77e-06]
[1724001936448,5.66415,2647.6,2647.5,9.77e-06]
[1724001936845,1.88925,2646.0,2645.4,1.88959]
[1724001937054,1.88922,2646.0,2645.4,1.88959]
[1724001937252,3.2078,2645.7,2645.4,0.00425816]
[1724001937457,3.21221627,2646.0,2645.4,0.00425816]
[1724001937767,0.00441627,2646.0,2645.5,1.88955]
[1724001938062,0.00441627,2646.0,2645.6,3.2078]
[1724001938253,0.00441627,2646.0,2645.9,1.88926]
[1724001938455,0.01007889,2646.0,2645.9,1.88926]
[1724001938650,3.2078,2647.1,2645.9,8.7792]
[1724001938850,3.2078,2647.1,2646.4,3.2078]
[1724001939045,3.2078,2647.1,2646.6,1.88871]
[1724001939258,3.2078,2647.1,2646.7,1.88866]
[1724001939650,3.21186285,2647.1,2646.5,3.2078]
[1724001939858,3.21186285,2647.1,2647.0,1.88848]
[1724001940059,0.00406285,2647.1,2647.0,1.88848]
[1724001940366,0.00406285,2647.1,2647.0,5.66608]
[1724001941759,3.2078,2648.0,2647.0,10.66608]
[1724001941961,3.2078,2648.0,2647.3,3.2078]
[1724001942160,6.3818,2648.4,2647.3,3.2078]
[1724001942358,3.2078,2648.4,2647.5,3.2078]
[1724001942547,5.0953,2648.4,2647.9,1.88779]
[1724001942752,3.2108236,2648.4,2648.0,1.88775]
[1724001942954,3.2108236,2648.4,2648.1,1.88769]
[1724001943162,3.21648622,2648.4,2648.0,1.88773]
[1724001943461,3.21648622,2648.4,2648.3,1.88755]
[1724001943462,0.00868622,2648.4,2648.3,1.88755]
[1724001943664,0.00868622,2648.4,2648.3,5.66355]
[1724001943960,3.77538,2648.1,2648.0,0.00566262]
[1724001944162,6.98318,2648.1,2648.0,0.00566262]
[1724001944361,10.75918,2648.1,2648.0,0.00566262]
[1724001945163,1.89619622,2648.4,2648.0,0.00566262]
[1724001945457,1.88755,2648.3,2648.0,0.00566262]
[1724001945662,1.88769,2648.1,2648.0,0.00566262]
[1724001945865,5.09547,2648.2,2648.0,0.00566262]
[1724001946064,3.2078,2648.2,2648.0,0.00566262]
[1724001946258,1.88769,2648.1,2648.0,0.00566262]
[1724001946661,0.00868622,2648.4,2648.0,0.00566262]
[1724001946865,0.00868622,2648.4,2648.1,1.88765]
[1724001947053,0.00868622,2648.4,2648.0,0.00566262]
[1724001947367,0.00868622,2648.4,2648.3,1.88755]
[1724001947881,0.00868622,2648.4,2648.3,10.66355]
[1724001948073,0.00868622,2648.4,2648.3,8.87135]
[1724001948376,1.88688,2649.3,2648.8,1.88716]
[1724001948556,1.88692,2649.2,2648.8,1.88716]
[1724001948769,1.8869,2649.3,2648.9,1.8871]
[1724001948965,3.2078,2649.4,2648.6,3.2078]
[1724001949172,5.09463,2649.4,2648.6,3.2078]
[1724001949362,5.09923024,2649.4,2648.6,3.2078]
[1724001949562,5.09923024,2649.4,2649.0,1.88703]
[1724001949769,0.00566262,2649.3,2648.6,3.2078]
[1724001950270,1.89253262,2649.3,2648.6,3.2078]
[1724001950461,1.88723,2648.8,2648.4,0.7377]
[1724001950656,3.2078,2649.1,2648.4,0.7377]
[1724001950874,0.00566262,2649.3,2648.6,1.88728]
[1724001950875,3.21346262,2649.3,2648.6,1.88728]
[1724001951064,5.09489,2649.0,2648.5,1.88734]
[1724001951261,3.2078,2649.0,2648.6,1.8873]
[1724001951462,3.2078,2649.0,2648.9,1.88712]
[1724001951766,1.88701,2649.1,2648.7,1.88726]
[1724001951957,3.21346262,2649.3,2648.4,0.7377]
[1724001952163,1.88692,2649.2,2648.8,1.88715]
[1724001952366,3.21346262,2649.3,2648.4,0.7377]
[1724001952871,1.88702,2649.1,2648.7,1.88722]
[1724001953370,1.88695,2649.2,2648.8,1.88719]
[1724001953772,0.00566262,2649.3,2648.6,3.2078]
[1724001953972,1.89256262,2649.3,2648.9,1.88705]
[1724001954463,3.2078,2649.2,2648.4,0.7377]
[1724001954661,1.88724,2648.8,2648.4,2.62514]
[1724001954858,1.88749,2648.4,2648.0,1.89339262]
[1724001955071,3.2078,2648.6,2648.0,0.00566262]
[1724001955564,3.2078,2648.9,2648.0,5.10120262]
[1724001955775,3.2078,2648.9,2648.6,1.8873]
[1724001956067,3.174,2649.1,2648.7,1.88722]
[1724001956068,5.061,2649.1,2648.7,1.88722]
[1724001956370,3.174,2649.1,2648.5,1.88736]
[1724001956562,3.174,2649.1,2648.3,3.2078]
[1724001956563,1.8873,2648.7,2648.3,5.09532]
[1724001956759,1.88734,2648.6,2648.3,3.2078]
[1724001956965,1.8873,2648.7,2648.3,5.09535]
[1724001957566,3.174,2649.1,2648.2,1.88758]
[1724001957567,5.09517,2648.6,2648.2,1.88758]
[1724001958472,1.88758,2648.3,2648.0,0.00566262]
[1724001958668,3.2078,2648.9,2648.0,0.00566262]
[1724001958870,1.88724,2648.8,2648.0,0.00566262]
[1724001959171,3.2078,2648.9,2648.8,1.88719]
[1724001959465,3.21346262,2649.3,2648.9,1.88709]
[1724001959682,1.88696,2649.2,2648.8,1.88716]
[1724001960163,5.10033262,2649.3,2648.5,3.2078]
[1724001960372,3.21346262,2649.3,2648.5,3.2078]
[1724001960575,3.2078,2648.9,2648.3,0.3401]
[1724001960758,5.09517,2648.6,2648.0,0.00566262]
[1724001960960,1.88769,2648.1,2648.0,0.00566262]
[1724001961368,5.66369,2648.1,2648.0,0.00566262]
[1724001961770,1.88748,2648.4,2648.0,0.00566262]
[1724001962065,1.88769,2648.1,2648.0,0.00566262]
[1724001962471,3.2078,2648.2,2648.0,0.00566262]
[1724001962665,3.2078,2648.5,2648.4,1.88748]
[1724001962864,1.8873,2648.7,2648.3,1.88748]
[1724001963071,1.8873,2648.7,2648.3,1.88753]
[1724001963262,3.2078,2649.0,2648.3,1.88753]
[1724001963514,3.2078,2649.0,2648.1,3.5499]
[1724001963663,3.21346262,2649.3,2648.4,3.2078]
[1724001964069,3.2078,2649.0,2648.3,1.88752]
[1724001964379,1.88737,2648.6,2648.2,1.88757]
[1724001964674,3.2078,2648.7,2648.1,0.3421]
[1724001964871,1.88751,2648.4,2648.1,0.3421]
[1724001965071,1.88717,2648.9,2648.1,0.3421]
[1724001965072,3.2078,2648.9,2648.3,1.88749]
[1724001965284,3.2078,2648.9,2648.6,1.88727]
[1724001965285,1.88712,2648.9,2648.6,1.88727]
[1724001965472,1.88708,2649.0,2648.7,1.88722]
[1724001965664,1.88708,2649.0,2648.3,3.2078]
[1724001965866,3.2078,2649.2,2648.7,1.88722]
[1724001966063,1.88704,2649.1,2648.7,1.88722]
[1724001966370,1.887,2649.1,2648.8,1.88716]
[1724001966676,1.887,2649.1,2648.2,4.176]
[1724001966677,1.88716,2648.9,2648.2,4.176]
[1724001966882,1.88716,2648.9,2648.6,1.88731]
[1724001967073,1.88698,2649.1,2648.2,4.176]
[1724001967273,1.88716,2648.9,2648.2,4.176]
[1724001967504,1.88732,2648.7,2648.4,1.88744]
[1724001967769,1.88769,2648.1,2648.0,0.00566262]
[1724001967978,3.2078,2648.2,2648.0,0.00566262]
[1724001968481,5.09524,2648.5,2648.2,1.88759]
[1724001968681,1.88728,2648.7,2648.2,3.776]
[1724001968972,3.2078,2648.4,2648.0,0.00566262]
[1724001969173,1.8876,2648.3,2648.0,0.00566262]
[1724001969371,3.2078,2648.4,2648.0,1.89337262]
[1724001969578,5.09549,2648.1,2648.0,0.00566262]
[1724001970576,5.09549,2648.1,2647.9,0.00473541]
[1724001970577,3.77552,2648.0,2647.9,0.00473541]
[1724001970882,7.55232,2648.0,2647.9,0.00473541]
[1724001971270,7.55232,2648.0,2647.1,6.06436]
[1724001971271,1.88817,2647.5,2647.1,6.06436]
[1724001971497,1.88825,2647.4,2647.0,1.88845]
[1724001971679,1.8882,2647.4,2647.1,1.8884]
[1724001971897,3.2078,2647.8,2646.9,3.78326262]
[1724001972078,0.00566262,2647.5,2647.4,1.88819]
[1724001972273,3.2078,2648.2,2647.4,1.89278148]
[1724001972485,3.2078,2648.4,2647.7,3.2078]
[1724001972681,5.09531,2648.4,2647.6,0.3557]
[1724001972987,1.88738,2648.6,2648.3,1.8875]
[1724001973278,0.00297699,2648.6,2648.4,1.88741]
[1724001973577,1.88756,2648.3,2648.2,0.00566262]
[1724001973782,5.09529,2648.4,2648.2,0.00566262]
[1724001973981,1.89034699,2648.6,2648.3,1.88752]
[1724001974183,0.00297699,2648.6,2648.4,1.88746]
[1724001974374,0.00297699,2648.6,2648.2,0.00566262]
[1724001974774,1.89032699,2648.6,2648.3,1.88752]
[1724001974976,1.89034699,2648.6,2648.3,1.88752]
[1724001975285,0.00297699,2648.6,2648.5,1.88741]
[1724001975781,0.00297699,2648.6,2648.5,10.66341]
[1724001975984,0.00566262,2648.7,2648.6,3.77468]
[1724001976180,3.2078,2649.7,2648.8,1.88719]
[1724001976380,5.09439,2649.7,2649.4,1.88674]
[1724001976778,3.2078,2649.7,2649.5,1.88669]
[1724001976977,3.2078,2649.7,2649.5,1.89005942]
[1724001976978,3.21098866,2649.7,2649.5,1.89005942]
[1724001977180,3.21098866,2649.7,2649.5,1.89001942]
[1724001977385,5.09754866,2649.7,2649.5,1.89001942]
[1724001977780,3.21098866,2649.7,2649.5,1.89001942]
[1724001978395,3.21098866,2649.7,2649.6,1.88662]
[1724001978803,0.00318866,2649.7,2649.6,10.66102]
[1724001979403,0.00566262,2649.9,2649.8,1.88648]
[1724001979898,0.00566262,2649.9,2649.8,10.66008]
[1724001980295,0.0104359,2649.9,2649.8,10.66008]
[1724001980601,0.0104359,2649.9,2649.8,5.66008]
[1724001981197,0.0104359,2649.9,2649.6,0.00566262]
[1724001981401,1.88653,2649.8,2649.6,0.00566262]
[1724001981595,0.0104359,2649.9,2649.6,0.00566262]
[1724001981902,1.88655,2649.7,2649.6,0.00566262]
[1724001982104,1.88652,2649.8,2649.6,0.00566262]
[1724001982607,0.0104359,2649.9,2649.6,1.89225262]
[1724001982803,1.8968759,2649.9,2649.6,0.00566262]
[1724001983017,0.0104359,2649.9,2649.6,1.89227262]
[1724001983312,0.0104359,2649.9,2649.8,1.88648]
[1724001983808,0.0104359,2649.9,2649.6,0.00566262]
[1724001984009,1.88652,2649.8,2649.6,0.00566262]
[1724001984210,3.2078,2649.7,2649.6,0.00566262]
[1724001984503,1.8968659,2649.9,2649.6,0.00566262]
[1724001984897,0.0104359,2649.9,2649.7,1.88652]
[1724001985101,0.0104359,2649.9,2649.8,1.88648]
[1724001985505,0.0104359,2649.9,2649.8,5.66008]
[1724001986107,0.0104359,2649.9,2649.8,10.66008]
[1724001986605,0.0104359,2649.9,2649.8,12.54656]
[1724001986805,3.2078,2650.5,2650.4,1.88605]
[1724001987006,3.2078,2650.5,2650.3,1.88606]
[1724001987309,3.2078,2650.5,2650.4,1.88605]
[1724001987803,3.2115067,2650.5,2650.4,1.88605]
[1724001988209,0.0037067,2650.5,2650.4,1.88605]
[1724001988407,0.0037067,2650.5,2650.4,5.65885]
[1724001989608,0.0037067,2650.5,2650.4,10.65885]
[1724001991906,0.0037067,2650.5,2650.4,5.65885]
[1724001992109,0.0037067,2650.5,2650.4,10.65885]
[1724001993314,0.00566262,2650.7,2650.6,1.88591]
[1724001993818,0.00566262,2650.7,2650.6,5.65871]
[1724001994213,0.02895567,2650.7,2650.6,5.65871]
[1724001994417,0.03208063,2650.7,2650.6,5.65871]
[1724001995102,0.03208063,2650.7,2650.6,10.65871]
[1724001995314,0.03208063,2650.7,2650.6,5.65871]
[1724001995508,3.23988063,2650.7,2650.6,0.0233117]
[1724001996632,1.8854,2651.4,2651.1,1.8855]
[1724001996812,1.8853,2651.5,2651.2,1.88546]
[1724001997114,3.8933,2652.0,2651.4,1.88528]
[1724001997317,3.2078,2651.8,2651.0,4.176]
[1724001997508,3.2078,2651.8,2651.4,0.0233117]
[1724001997509,5.09311,2651.5,2651.4,0.0233117]
[1724001997704,1.88531,2651.5,2651.4,0.0233117]
[1724001997909,3.2078,2651.6,2651.4,1.9086317]
[1724001998206,0.00361731,2651.7,2651.5,1.88527]
[1724001998411,0.00361731,2651.7,2651.4,0.0233117]
[1724001998412,0.00361731,2651.7,2651.6,1.8852]
[1724001998607,0.00361731,2651.7,2651.6,0.0233117]
[1724001998823,7.54507731,2651.7,2651.6,0.0233117]
[1724001999728,5.65994731,2651.7,2651.6,0.0233117]
[1724002001121,7.54507731,2651.7,2651.6,0.0233117]
[1724002001320,5.65994731,2651.7,2651.6,0.0233117]
[1724002001518,7.54507731,2651.7,2651.6,0.0233117]
[1724002001915,12.54507731,2651.7,2651.6,0.0233117]
[1724002002224,5.65994731,2651.7,2651.6,0.0233117]
[1724002003223,6.01424731,2651.7,2651.6,0.0233117]
[1724002004019,2.24304731,2651.7,2651.6,0.0233117]
[1724002004228,0.00361731,2651.7,2651.6,0.0233117]
[1724002004823,1.88874731,2651.7,2651.6,0.0233117]
[1724002005217,0.00361731,2651.7,2651.6,1.9085117]
[1724002005521,0.00361731,2651.7,2651.6,5.6797117]
[1724002009129,0.00361731,2651.7,2651.6,10.6797117]
[1724002011338,0.00285622,2651.8,2651.7,1.88513]
[1724002011516,0.00285622,2651.8,2651.7,5.6796417]
[1724002012722,0.00285622,2651.8,2651.7,12.5647717]
[1724002012922,3.2078,2652.2,2652.1,1.88485]
[1724002013729,3.2078,2652.2,2652.1,1.9081617]
[1724002014124,3.21050464,2652.2,2652.1,5.6785617]
[1724002014428,10.75044464,2652.2,2652.1,0.0233117]
[1724002014827,8.86567464,2652.2,2652.1,0.0233117]